bitfinex-derivatives/quotes_BNBF0:USTF0_20250904
["timestamp","ask_amount","ask_price","bid_price","bid_amount"]
[1756964320416,1.0558038,847.97,846.81,0.79663272]
[1756964320613,1.0558038,847.94,846.78,0.79663272]
[1756964321411,1.0558038,847.93,846.78,0.79663272]
[1756964322016,1.0558038,847.92,846.78,0.79663272]
[1756964322612,1.0558038,847.9,846.79,0.79663272]
[1756964323016,1.0558038,847.88,846.76,0.79663272]
[1756964323216,1.0558038,847.87,846.77,0.79663272]
[1756964323417,1.0558038,847.88,846.77,0.79663272]
[1756964324013,1.0558038,847.81,846.79,0.79663272]
[1756964324314,1.0558038,847.79,846.79,0.79663272]
[1756964326214,1.0558038,847.79,846.8,0.79663272]
[1756964326418,1.0558038,847.79,846.79,0.79663272]
[1756964327114,2.6395096,848.79,846.79,0.79663272]
[1756964327115,1.0558038,847.78,846.79,0.79663272]
[1756964327418,1.0558038,847.78,845.2,3.6903325]
[1756964327419,1.0558038,847.9,846.71,0.79663272]
[1756964327719,1.0558038,847.9,845.22,2.6359517]
[1756964327720,1.0558038,847.91,846.72,0.79663272]
[1756964327917,1.0558038,847.89,846.68,0.79663272]
[1756964328119,1.0558038,847.87,846.68,0.79663272]
[1756964328617,1.0558038,847.85,846.65,0.79663272]
[1756964328825,1.0558038,847.84,846.61,0.79663272]
[1756964329721,1.0558038,847.59,846.61,0.79663272]
[1756964329919,1.0558038,847.6,846.6,0.79663272]
[1756964330120,1.5837057,847.79,845.48,2.6359517]
[1756964330121,1.0558038,847.58,846.58,0.79663272]
[1756964330318,1.0558038,847.58,846.39,1.0543807]
[1756964330319,1.0558038,847.58,846.56,0.79663272]
[1756964330523,1.0558038,847.51,846.59,0.79663272]
[1756964330821,1.0558038,847.5,846.59,0.79663272]
[1756964331019,1.0558038,847.5,846.58,0.79663272]
[1756964331519,1.0558038,847.51,846.5,0.79663272]
[1756964332424,1.0558038,847.53,846.48,0.79663272]
[1756964333325,1.0558038,847.55,846.46,0.79663272]
[1756964334029,1.0558038,847.54,846.47,0.79663272]
[1756964334528,1.0558038,847.55,846.46,0.79663272]
[1756964335325,1.0558038,847.58,846.45,0.79663272]
[1756964335524,1.0558038,847.57,846.45,0.79663272]
[1756964335730,1.0558038,847.59,846.44,0.79663272]
[1756964336424,1.0558038,847.61,846.44,0.79663272]
[1756964337325,1.0558038,847.62,846.44,0.79663272]
[1756964337929,1.0558038,847.62,846.43,0.79663272]
[1756964338330,3.6953134,848.88,846.43,0.79663272]
[1756964338331,1.0558038,847.63,846.43,0.79663272]
[1756964339027,1.0558038,847.85,846.33,0.79663272]
[1756964339429,1.0558038,847.86,846.33,0.79663272]
[1756964341233,1.0558038,847.88,846.33,0.79663272]
[1756964341532,1.0558038,847.88,846.32,0.79663272]
[1756964342232,1.0558038,847.89,846.32,0.79663272]
[1756964343232,1.0558038,847.9,846.32,0.79663272]
[1756964344133,1.0558038,847.91,846.32,0.79663272]
[1756964344429,0.20541941,847.51,846.32,0.79663272]
[1756964345732,0.20541941,847.51,845.42,0.20541941]
[1756964345733,0.20541941,847.51,846.31,0.79663272]
[1756964346037,0.20541941,847.51,846.26,0.79663272]
[1756964346333,0.20541941,847.51,846.33,0.79663272]
[1756964346836,0.20541941,847.51,846.32,0.79663272]
[1756964347232,0.20541941,847.51,846.35,0.79663272]
[1756964347434,0.20541941,847.51,846.29,0.79663272]
[1756964349633,0.20541941,847.51,846.23,0.79663272]
[1756964351240,0.20541941,847.51,846.22,0.79663272]
[1756964351537,0.20541941,847.51,846.23,0.79663272]
[1756964352641,0.20541941,847.51,846.22,0.79663272]
[1756964355139,0.20541941,847.51,846.23,0.79663272]
[1756964355341,0.20541941,847.51,846.22,0.79663272]
[1756964355745,0.20541941,847.51,846.21,0.79663272]
[1756964357742,0.20541941,847.51,846.23,0.79663272]
[1756964358641,0.20541941,847.51,846.09,0.79663272]
[1756964360149,0.20541941,847.51,846.08,0.79663272]
[1756964361548,0.20541941,847.51,846.06,0.79663272]
[1756964367756,0.20541941,847.51,846.03,0.79663272]
[1756964368253,0.20541941,847.51,846.05,0.79663272]
[1756964368452,0.20541941,847.51,846.0,0.79663272]
[1756964369352,1.26122321,847.51,846.0,0.79663272]
[1756964369752,1.0558038,847.48,845.97,0.79663272]
[1756964369962,1.0558038,847.47,845.97,0.79663272]
[1756964370152,1.0558038,847.48,845.97,0.79663272]
[1756964370455,1.0558038,847.4,845.94,0.79663272]
[1756964370857,1.0558038,847.38,845.95,0.79663272]
[1756964371258,1.0558038,847.41,845.94,0.79663272]
[1756964371457,1.0558038,847.4,845.94,0.79663272]
[1756964371657,1.0558038,847.46,846.0,0.79663272]
[1756964371857,1.0558038,847.47,846.0,0.79663272]
[1756964372056,1.0558038,847.46,846.0,0.79663272]
[1756964372357,1.0558038,847.47,846.04,0.79663272]
[1756964373960,1.0558038,847.46,846.05,0.79663272]
[1756964374355,1.0558038,847.45,846.05,0.79663272]
[1756964374656,1.0558038,847.38,846.08,0.79663272]
[1756964375061,1.0558038,847.37,846.07,0.79663272]
[1756964375361,1.0558038,847.36,846.08,0.79663272]
[1756964375659,1.0558038,847.37,846.08,0.79663272]
[1756964376259,1.78912511,847.51,846.07,0.79663272]
[1756964376260,1.0558038,847.39,846.07,0.79663272]
[1756964376862,0.20541941,847.51,846.04,0.79663272]
[1756964378062,0.20541941,847.51,846.01,0.79663272]
[1756964378463,0.20541941,847.51,846.02,0.79663272]
[1756964378968,0.20541941,847.51,846.03,0.79663272]
[1756964379368,0.20541941,847.51,846.04,0.79663272]
[1756964379770,0.20541941,847.51,846.02,0.79663272]
[1756964380369,0.20541941,847.51,846.03,0.79663272]
[1756964380566,1.0558038,847.47,846.02,0.79663272]
[1756964381166,1.0558038,847.48,846.02,0.79663272]
[1756964381367,1.0558038,847.38,846.05,0.79663272]
[1756964381866,1.0558038,847.39,846.05,0.79663272]
[1756964382568,1.0558038,847.38,846.05,0.79663272]
[1756964382771,1.0558038,847.36,846.06,0.79663272]
[1756964383166,1.0558038,847.37,846.06,0.79663272]
[1756964383370,1.0558038,847.34,846.06,0.79663272]
[1756964384073,1.0558038,847.35,846.06,0.79663272]
[1756964384273,1.0558038,847.33,846.07,0.79663272]
[1756964384573,1.78912511,847.51,846.08,0.79663272]
[1756964384574,1.0558038,847.31,846.08,0.79663272]
[1756964385372,1.0558038,847.29,846.08,0.79663272]
[1756964386375,1.0558038,847.28,846.09,0.79663272]
[1756964386969,1.5837057,847.45,846.09,0.79663272]
[1756964386970,1.0558038,847.27,846.09,0.79663272]
[1756964387270,1.0558038,847.25,846.09,0.79663272]
[1756964387973,0.20541941,847.51,846.11,0.79663272]
[1756964387974,1.0558038,847.28,846.11,0.79663272]
[1756964388370,1.0558038,847.28,845.94,1.0543807]
[1756964388371,1.0558038,847.26,846.12,0.79663272]
[1756964389373,1.0558038,847.25,846.12,0.79663272]
[1756964389776,1.0558038,847.24,846.12,0.79663272]
[1756964389976,1.0558038,847.25,846.12,0.79663272]
[1756964390177,1.0558038,847.25,845.95,1.0543807]
[1756964390373,1.0558038,847.22,846.13,0.79349551]
[1756964391179,1.0558038,847.2,846.14,0.79349551]
[1756964391373,1.0558038,847.2,845.98,1.0543807]
[1756964391374,1.0558038,847.21,846.13,0.79349551]
[1756964391575,1.0558038,847.2,846.14,0.79349551]
[1756964391875,1.0558038,847.21,846.14,0.79349551]
[1756964393178,1.0558038,847.2,846.14,0.79349551]
[1756964394182,1.0558038,847.19,846.14,0.79349551]
[1756964394481,1.0558038,847.19,846.15,0.79349551]
[1756964395583,1.5837057,847.35,846.15,0.79349551]
[1756964395584,1.0558038,847.18,846.15,0.79349551]
[1756964396079,1.5837057,847.35,846.15,0.79349551]
[1756964396080,1.0558038,847.19,846.15,0.79349551]
[1756964396380,1.0558038,847.16,846.16,0.79349551]
[1756964396583,1.0558038,847.19,846.15,0.79349551]
[1756964396781,1.0558038,847.22,846.14,0.79349551]
[1756964397380,1.0558038,847.21,846.14,0.79349551]
[1756964398186,1.0558038,847.21,846.15,0.79349551]
[1756964398786,1.0558038,847.2,846.15,0.79349551]
[1756964401183,1.0558038,847.23,846.14,0.79349551]
[1756964401385,1.0558038,847.21,846.15,0.79349551]
[1756964401787,1.0558038,847.22,846.15,0.79349551]
[1756964402287,1.0558038,847.21,846.15,0.79349551]
[1756964403183,1.0558038,847.21,846.16,0.79349551]
[1756964403488,1.0558038,847.19,846.15,0.79349551]
[1756964403784,1.0558038,847.09,846.06,0.79349551]
[1756964404185,1.0558038,847.08,846.07,0.79349551]
[1756964404482,1.0558038,847.08,846.06,0.79349551]
[1756964404684,1.0558038,847.04,846.08,0.79349551]
[1756964404888,1.0558038,847.02,846.09,0.79349551]
[1756964405288,1.0558038,847.01,846.09,0.79349551]
[1756964405889,1.0558038,846.98,846.11,0.79349551]
[1756964406189,1.0558038,846.97,846.12,0.79349551]
[1756964406386,1.0558038,846.97,846.11,0.79349551]
[1756964406584,1.0558038,846.97,846.12,0.79349551]
[1756964406789,1.0558038,846.99,846.1,0.79349551]
[1756964407189,1.0558038,846.99,846.11,0.79349551]
[1756964408491,1.0558038,846.98,846.11,0.79349551]
[1756964409189,1.0558038,846.98,846.12,0.79349551]
[1756964409488,1.0558038,846.98,846.11,0.79349551]
[1756964409693,1.0558038,846.99,846.11,0.79349551]
[1756964410290,1.0558038,846.98,846.12,0.79349551]
[1756964410491,0.20541941,847.51,845.42,0.20541941]
[1756964410492,1.0558038,847.06,846.08,0.79349551]
[1756964411193,1.0558038,847.05,846.09,0.79349551]
[1756964411692,1.0558038,847.07,846.08,0.79349551]
[1756964412197,1.0558038,847.06,846.09,0.79349551]
[1756964412395,1.0558038,847.06,846.08,0.79349551]
[1756964412600,1.0558038,847.06,846.09,0.79349551]
[1756964414298,1.0558038,847.05,846.09,0.79349551]
[1756964415198,1.0558038,847.05,846.1,0.79349551]
[1756964416199,1.0558038,847.04,846.11,0.79349551]
[1756964416599,1.0558038,847.03,846.11,0.79349551]
[1756964417000,1.0558038,847.05,846.11,0.79349551]
[1756964417201,1.0558038,847.03,846.12,0.79349551]
[1756964417500,1.0558038,847.03,846.11,0.79349551]
[1756964417901,1.5837057,847.22,846.11,0.79349551]
[1756964417902,1.0558038,847.04,846.11,0.79349551]
[1756964418197,1.5837057,847.22,846.13,0.79349551]
[1756964418198,1.0558038,847.03,846.13,0.79349551]
[1756964419299,1.0558038,847.07,846.11,0.79349551]
[1756964419797,1.0558038,847.07,846.12,0.79349551]
[1756964420501,1.0558038,847.03,846.13,0.79349551]
[1756964420702,1.0558038,847.06,846.12,0.79349551]
[1756964421702,1.0558038,847.05,846.12,0.79349551]
[1756964421902,1.0558038,847.06,846.12,0.79349551]
[1756964423105,1.0558038,847.07,846.11,0.79349551]
[1756964428000,1.0558038,847.05,846.1,0.79349551]
[1756964429301,1.0558038,847.1,846.14,0.79349551]
[1756964429506,1.0558038,847.16,846.14,0.79349551]
[1756964429804,1.0558038,847.17,846.15,0.79349551]
[1756964430602,1.0558038,847.14,846.26,0.79349551]
[1756964430807,1.0558038,847.13,846.25,0.79349551]
[1756964432106,1.0558038,847.15,846.24,0.79349551]
[1756964432408,1.0558038,847.13,846.22,0.79349551]
[1756964435203,1.0558038,847.13,846.21,0.79349551]
[1756964435809,1.0558038,847.12,846.22,0.79349551]
[1756964436205,1.0558038,847.13,846.22,0.79349551]
[1756964436407,1.0558038,847.13,845.42,0.20541941]
[1756964436408,1.0558038,847.1,846.23,0.79349551]
[1756964437109,1.0558038,847.11,846.22,0.79349551]
[1756964437410,1.0558038,847.06,846.24,0.79349551]
[1756964438311,1.0558038,847.03,846.25,0.79349551]
[1756964438509,1.0558038,847.1,846.22,0.79349551]
[1756964439313,1.0558038,847.19,846.19,0.79349551]
[1756964440213,1.0558038,847.18,846.19,0.79349551]
[1756964442214,1.0558038,847.19,846.19,0.79349551]
[1756964442414,1.0558038,847.15,846.2,0.79349551]
[1756964443014,0.20541941,847.51,846.23,0.79349551]
[1756964443015,1.0558038,847.1,846.23,0.79349551]
[1756964443719,1.0558038,847.06,846.24,0.79349551]
[1756964444819,1.0558038,847.04,846.25,0.79349551]
[1756964445520,1.0558038,847.05,846.25,0.79349551]
[1756964446114,1.0558038,847.06,846.26,0.79349551]
[1756964446318,1.0558038,847.04,846.26,0.79349551]
[1756964446614,1.0558038,847.11,846.23,0.79349551]
[1756964447018,1.0558038,847.14,846.23,0.79349551]
[1756964447217,1.0558038,847.16,846.26,0.79349551]
[1756964447415,1.0558038,847.18,846.25,0.79349551]
[1756964447614,1.0558038,847.22,846.24,0.79349551]
[1756964447814,1.0558038,847.28,846.29,0.79349551]
[1756964448022,1.0558038,847.28,846.3,0.79349551]
[1756964448319,1.0558038,847.28,846.29,0.79349551]
[1756964448726,1.0558038,847.29,846.3,0.79349551]
[1756964448926,1.0558038,847.27,846.29,0.79349551]
[1756964449422,1.0558038,847.3,846.28,0.79349551]
[1756964451229,1.0558038,847.29,846.28,0.79349551]
[1756964451425,1.0558038,847.3,846.28,0.79349551]
[1756964452332,1.0558038,847.31,846.27,0.79349551]
[1756964453832,1.0558038,847.3,846.27,0.79349551]
[1756964454529,1.0558038,847.27,846.28,0.79349551]
[1756964456332,1.0558038,847.28,846.28,0.79349551]
[1756964457329,1.26122321,847.51,846.37,0.79349551]
[1756964457525,0.20541941,847.51,846.36,0.79349551]
[1756964457927,0.20541941,847.51,846.13,1.0543807]
[1756964457928,1.0558038,847.49,846.33,0.79349551]
[1756964458327,1.0558038,847.5,846.32,0.79349551]
[1756964458532,0.20541941,847.51,846.31,0.79349551]
[1756964459027,0.20541941,847.51,846.3,0.79349551]
[1756964459433,0.20541941,847.51,846.29,0.79349551]
[1756964461533,0.20541941,847.51,846.28,0.79349551]
[1756964461734,0.20541941,847.51,846.25,0.79349551]
[1756964462233,0.20541941,847.51,846.26,0.79349551]
[1756964462734,0.20541941,847.51,846.25,0.79349551]
[1756964463231,0.20541941,847.51,846.26,0.79349551]
[1756964466237,1.0558038,847.48,846.27,0.79349551]
[1756964466437,1.0558038,847.49,846.27,0.79349551]
[1756964466637,1.0558038,847.48,846.26,0.79349551]
[1756964467735,1.0558038,847.44,846.28,0.79349551]
[1756964468138,1.0558038,847.46,846.3,0.79349551]
[1756964470339,1.0558038,847.46,846.29,0.79349551]
[1756964470539,0.20541941,847.51,845.88,1.581571]
[1756964470540,1.0558038,847.43,846.28,0.79349551]
[1756964470739,1.0558038,847.38,846.28,0.79349551]
[1756964471539,1.0558038,847.35,846.29,0.79349551]
[1756964471740,1.0558038,847.4,846.28,0.79349551]
[1756964472438,1.0558038,847.39,846.28,0.79349551]
[1756964472644,1.0558038,847.36,846.27,0.79349551]
[1756964472838,1.0558038,847.34,846.24,0.79349551]
[1756964473536,1.0558038,847.33,846.24,0.79349551]
[1756964473737,1.0558038,847.36,846.23,0.79349551]
[1756964473937,1.0558038,847.34,846.24,0.79349551]
[1756964474141,1.0558038,847.33,846.22,0.79349551]
[1756964476343,1.0558038,847.32,846.23,0.79349551]
[1756964476537,1.0558038,847.33,846.23,0.79349551]
[1756964476740,1.0558038,847.32,846.23,0.79349551]
[1756964476944,1.0558038,847.33,846.23,0.79349551]
[1756964477240,1.0558038,847.34,846.22,0.79349551]
[1756964477945,1.0558038,847.36,846.23,0.79349551]
[1756964478942,1.0558038,847.35,846.23,0.79349551]
[1756964479943,1.0558038,847.43,846.2,0.79349551]
[1756964480847,1.0558038,847.4,846.21,0.79349551]
[1756964481043,1.0558038,847.41,846.22,0.79349551]
[1756964481546,1.0558038,847.41,846.0,1.0543807]
[1756964481547,1.0558038,847.4,846.23,0.79349551]
[1756964481742,1.0558038,847.32,846.36,0.79349551]
[1756964482246,1.0558038,847.38,846.34,0.79349551]
[1756964482845,1.0558038,847.39,846.34,0.79349551]
[1756964483647,1.0558038,847.37,846.34,0.79349551]
[1756964483847,1.0558038,847.36,846.34,0.79349551]
[1756964484347,1.0558038,847.35,846.35,0.79349551]
[1756964484744,1.0558038,847.33,846.32,0.79349551]
[1756964486449,1.0558038,847.32,846.33,0.79349551]
[1756964487748,1.0558038,847.31,846.32,0.79349551]
[1756964487949,1.0558038,847.3,846.29,0.79349551]
[1756964488249,1.0558038,847.31,846.29,0.79349551]
[1756964489350,1.0558038,847.31,846.3,0.79349551]
[1756964489850,1.0558038,847.35,846.28,0.79349551]
[1756964490350,1.0558038,847.34,846.28,0.79349551]
[1756964490546,1.0558038,847.34,846.29,0.79349551]
[1756964490951,1.0558038,847.3,846.3,0.79349551]
[1756964492251,1.0558038,847.29,846.31,0.79349551]
[1756964492947,1.0558038,847.3,846.3,0.79349551]
[1756964493353,1.0558038,847.3,846.31,0.79349551]
[1756964494751,1.0558038,847.29,846.31,0.79349551]
[1756964496249,1.0558038,847.29,846.32,0.79349551]
[1756964497350,1.0558038,847.28,846.32,0.79349551]
[1756964497751,1.0558038,847.27,846.32,0.79349551]
[1756964498055,1.0558038,847.29,846.32,0.79349551]
[1756964498356,1.0558038,847.27,846.33,0.79349551]
[1756964499051,1.0558038,847.25,846.32,0.79349551]
[1756964499256,1.0558038,847.26,846.33,0.79349551]
[1756964499759,1.0558038,847.2,846.35,0.79349551]
[1756964501459,1.0558038,847.2,846.36,0.79349551]
[1756964502157,1.0558038,847.26,846.33,0.79349551]
[1756964502459,0.20541941,847.51,845.42,0.20541941]
[1756964502460,1.0558038,847.25,846.34,0.79349551]
[1756964502756,0.20541941,847.51,846.34,0.79349551]
[1756964502757,1.0558038,847.24,846.34,0.79349551]
[1756964503259,1.0558038,847.26,846.33,0.79349551]
[1756964503557,1.0558038,847.25,846.34,0.79349551]
[1756964505261,1.0558038,847.24,846.35,0.79599799]
[1756964506361,1.0558038,847.3,846.33,0.79599799]
[1756964507361,1.0558038,847.29,846.33,0.79599799]
[1756964507957,1.0558038,847.27,846.32,0.79599799]
[1756964508160,1.0558038,847.28,846.31,0.79599799]
[1756964508356,1.0558038,847.28,846.32,0.79599799]
[1756964509661,1.0558038,847.27,846.32,0.79599799]
[1756964511962,0.20541941,847.51,845.42,0.20541941]
[1756964511963,1.0558038,847.25,846.33,0.79599799]
[1756964512165,1.0558038,847.24,846.33,0.79599799]
[1756964512964,1.0558038,847.23,846.34,0.79599799]
[1756964513268,1.0558038,847.24,846.33,0.79599799]
[1756964513668,1.0558038,847.25,846.33,0.79599799]
[1756964514871,1.0558038,847.28,846.32,0.79599799]
[1756964515364,1.0558038,847.27,846.32,0.79599799]
[1756964516069,1.0558038,847.23,846.34,0.79599799]
[1756964518069,1.0558038,847.23,846.36,0.79599799]
[1756964518369,1.0558038,847.24,846.35,0.79599799]
[1756964518867,1.0558038,847.25,846.35,0.79599799]
[1756964519267,1.0558038,847.25,845.42,0.20541941]
[1756964519268,1.0558038,847.25,846.36,0.79599799]
[1756964520069,1.0558038,847.24,846.36,0.79599799]
[1756964520274,1.0558038,847.23,846.36,0.79599799]
[1756964522271,1.0558038,847.23,846.37,0.79599799]
[1756964522977,1.0558038,847.21,846.37,0.79599799]
[1756964523277,1.0558038,847.19,846.38,0.79599799]
[1756964523474,1.0558038,847.2,846.38,0.79599799]
[1756964524282,1.0558038,847.19,846.38,0.79599799]
[1756964524881,1.0558038,847.15,846.4,0.79599799]
[1756964525379,1.0558038,847.15,846.23,1.0543807]
[1756964525575,1.0558038,847.15,846.4,0.79657787]
[1756964526284,1.0558038,847.15,846.41,0.79657787]
[1756964526482,1.0558038,847.21,846.38,0.79657787]
[1756964527183,1.0558038,847.2,846.37,0.79657787]
[1756964527382,1.0558038,847.2,846.38,0.79657787]
[1756964527582,0.20541941,847.51,846.38,0.79657787]
[1756964527583,1.0558038,847.21,846.38,0.79657787]
[1756964528382,1.0558038,847.2,846.38,0.79657787]
[1756964528583,1.0558038,847.22,846.38,0.79657787]
[1756964528785,1.0558038,847.21,846.38,0.79657787]
[1756964530281,1.0558038,847.21,846.39,0.79657787]
[1756964531185,1.0558038,847.2,846.39,0.79657787]
[1756964532289,1.0558038,847.2,846.4,0.79657787]
[1756964532486,1.0558038,847.2,846.39,0.79657787]
[1756964532887,1.0558038,847.2,846.2,1.0543807]
[1756964533085,1.0558038,847.2,846.39,0.79688496]
[1756964533390,1.0558038,847.19,846.4,0.79688496]
[1756964533591,1.0558038,847.2,846.39,0.79688496]
[1756964534691,1.0558038,847.24,846.38,0.79688496]
[1756964534993,1.0558038,847.25,846.37,0.79688496]
[1756964536390,1.0558038,847.22,846.39,0.79688496]
[1756964536994,1.0558038,847.33,846.41,0.79688496]
[1756964537190,1.0558038,847.36,846.44,0.79688496]
[1756964537393,1.0558038,847.36,846.43,0.79688496]
[1756964539191,1.0558038,847.37,846.42,0.79688496]
[1756964540197,1.0558038,847.36,846.43,0.79688496]
[1756964540391,1.0558038,847.36,846.42,0.79688496]
[1756964540695,1.0558038,847.33,846.44,0.79688496]
[1756964543695,1.0558038,847.33,846.43,0.79688496]
[1756964544596,1.0558038,847.22,846.48,0.79688496]
[1756964544799,0.20546429,847.11,846.48,0.79688496]
[1756964545500,0.20546429,847.11,846.46,0.79688496]
[1756964546196,0.20546429,847.11,846.45,0.79688496]
[1756964548100,0.20546429,847.11,846.44,0.79688496]
[1756964548400,0.20546429,847.11,846.43,0.79688496]
[1756964548603,0.20546429,847.11,846.44,0.79688496]
[1756964548902,0.20546429,847.11,846.43,0.79688496]
[1756964553405,0.20546429,847.11,846.42,0.79688496]
[1756964553704,0.20546429,847.11,846.43,0.79688496]
[1756964553905,0.20546429,847.11,846.42,0.79688496]
[1756964555208,0.20546429,847.11,846.44,0.79688496]
[1756964556912,0.20546429,847.11,846.47,0.79688496]
[1756964557110,0.20546429,847.11,846.58,0.79688496]
[1756964557410,0.20546429,847.11,846.55,0.79688496]
[1756964558217,0.20546429,847.11,846.58,0.79688496]
[1756964559215,0.20546429,847.11,846.57,0.79688496]
[1756964559513,0.20546429,847.11,846.37,1.0543807]
[1756964559514,0.20546429,847.11,846.58,0.79688496]
[1756964560215,0.20546429,847.11,846.57,0.79688496]
[1756964561419,0.20546429,847.11,846.56,0.79688496]
[1756964563313,0.20546429,847.11,846.55,0.79688496]
[1756964566824,0.20546429,847.11,846.53,0.79688496]
[1756964567221,0.20546429,847.11,846.54,0.79688496]
[1756964569326,0.20546429,847.11,846.53,0.79688496]
[1756964570230,0.20546429,847.11,846.34,1.0543807]
[1756964570231,0.20546429,847.11,846.54,0.79688496]
[1756964571232,0.20546429,847.11,846.53,0.79688496]
[1756964573734,0.20546429,847.11,846.49,0.79688496]
[1756964573934,0.20546429,847.11,846.5,0.79688496]
[1756964574135,0.20546429,847.11,846.49,0.79688496]
[1756964576834,0.20546429,847.11,846.3,1.0543807]
[1756964576835,0.20546429,847.11,846.51,0.79688496]
[1756964577532,0.20546429,847.11,845.62,0.20546429]
[1756964577533,0.20546429,847.11,846.49,0.79688496]
[1756964578039,0.20546429,847.11,846.5,0.79688496]
[1756964579236,0.20546429,847.11,846.49,0.79688496]
[1756964581141,0.20546429,847.11,846.47,0.79688496]
[1756964581454,0.20546429,847.11,846.39,0.79688496]
[1756964582238,0.20546429,847.11,846.4,0.79688496]
[1756964582643,0.20546429,847.11,846.38,0.79688496]
[1756964582839,0.20546429,847.11,846.37,0.79688496]
[1756964583044,0.20546429,847.11,846.34,0.79688496]
[1756964583240,0.20546429,847.11,846.35,0.79688496]
[1756964583440,0.20546429,847.11,846.33,0.79688496]
[1756964587143,0.20546429,847.11,846.34,0.79688496]
[1756964589552,0.20546429,847.11,846.32,0.79688496]
[1756964590349,0.20546429,847.11,846.33,0.79688496]
[1756964591452,0.20546429,847.11,846.35,0.79688496]
[1756964591648,0.20546429,847.11,846.32,0.79688496]
[1756964591848,0.20546429,847.11,846.3,0.79688496]
[1756964593248,0.20546429,847.11,846.31,0.79688496]
[1756964596550,0.20546429,847.11,846.32,0.79688496]
[1756964598058,0.20546429,847.11,846.31,0.79688496]
[1756964599458,0.20546429,847.11,846.3,0.79688496]
[1756964600158,0.20546429,847.11,846.31,0.79688496]
[1756964600853,0.20546429,847.11,846.32,0.79688496]
[1756964601460,0.20546429,847.11,846.31,0.79688496]
[1756964603859,0.20546429,847.11,846.29,0.79688496]
[1756964604859,0.20546429,847.11,846.28,0.79688496]
[1756964605260,0.20546429,847.11,846.28,0.79487663]
[1756964605860,0.20546429,847.11,846.29,0.79487663]
[1756964606258,0.20546429,847.11,846.03,0.79487663]
[1756964606458,0.20546429,847.11,846.02,0.79487663]
[1756964606957,0.20546429,847.11,846.04,0.79487663]
[1756964607257,0.20546429,847.11,846.03,0.79487663]
[1756964607756,0.20546429,847.11,846.04,0.79487663]
[1756964608563,0.20546429,847.11,846.15,0.79487663]
[1756964609661,0.20546429,847.11,846.14,0.79487663]
[1756964612366,0.20546429,847.11,846.13,0.79487663]
[1756964614366,0.20546429,847.11,846.12,0.79487663]
[1756964615767,0.20546429,847.11,846.1,0.79487663]
[1756964616269,0.20546429,847.11,846.12,0.79487663]
[1756964617667,0.20546429,847.11,846.13,0.79487663]
[1756964618065,0.20546429,847.11,846.12,0.79487663]
[1756964619871,0.20546429,847.11,846.11,0.79487663]
[1756964620167,0.20546429,847.11,846.12,0.79487663]
[1756964620372,0.20546429,847.11,846.11,0.79487663]
[1756964622475,0.20546429,847.11,846.12,0.79487663]
[1756964624577,0.20546429,847.11,846.13,0.79487663]
[1756964624977,0.20546429,847.11,846.12,0.79487663]
[1756964625777,0.20546429,847.11,846.14,0.79487663]
[1756964628077,0.20546429,847.11,846.12,0.79487663]
[1756964628281,0.20546429,847.11,846.11,0.79487663]
[1756964629182,0.20546429,847.11,846.12,0.79487663]
[1756964630081,0.20546429,847.11,846.11,0.79487663]
[1756964630286,0.20546429,847.11,846.12,0.79487663]
[1756964631987,0.20546429,847.11,846.13,0.79487663]
[1756964632788,0.20546429,847.11,846.12,0.79487663]
[1756964633289,0.20546429,847.11,846.13,0.79487663]
[1756964634390,0.20546429,847.11,846.14,0.79487663]
[1756964635089,0.20546429,847.11,846.13,0.79487663]
[1756964635385,0.20546429,847.11,846.14,0.79487663]
[1756964636889,0.20546429,847.11,846.13,0.79487663]
[1756964637291,0.20546429,847.11,846.14,0.79487663]
[1756964638591,0.20546429,847.11,846.15,0.79487663]
[1756964639292,0.20546429,847.11,846.16,0.79487663]
[1756964642292,0.20546429,847.11,846.17,0.79487663]
[1756964643199,0.20546429,847.11,846.18,0.79487663]
[1756964645398,0.20546429,847.11,846.17,0.79487663]
[1756964646602,1.0558038,847.07,846.19,0.79487663]
[1756964646901,0.20546429,847.11,846.1,0.79487663]
[1756964647101,0.20546429,847.11,845.95,0.79487663]
[1756964647301,0.20546429,847.11,845.7,1.0543807]
[1756964647302,1.0558038,847.02,845.92,0.79487663]
[1756964647702,1.0558038,846.99,845.94,0.79487663]
[1756964648203,1.0558038,847.0,845.94,0.79487663]
[1756964648704,1.0558038,846.99,845.94,0.79487663]
[1756964649303,1.0558038,847.0,845.93,0.79487663]
[1756964649502,1.0558038,846.98,845.94,0.79487663]
[1756964650207,0.20546429,847.11,845.73,1.0543807]
[1756964650208,1.0558038,846.99,845.93,0.79487663]
[1756964650503,1.0558038,846.93,845.96,0.79487663]
[1756964651107,1.0558038,846.94,845.95,0.79487663]
[1756964653207,1.0558038,846.95,845.94,0.79487663]
[1756964655413,1.0558038,846.97,845.93,0.79487663]
[1756964657009,1.0558038,846.9,845.95,0.79487663]
[1756964657210,1.0558038,846.91,845.95,0.79487663]
[1756964657513,0.20546429,847.11,845.97,0.79487663]
[1756964657514,1.0558038,846.93,845.97,0.79487663]
[1756964658414,1.0558038,846.94,845.97,0.79487663]
[1756964658713,1.0558038,847.0,845.94,0.79487663]
[1756964660210,1.0558038,846.99,845.95,0.79487663]
[1756964660514,1.0558038,847.01,845.94,0.79487663]
[1756964661917,1.0558038,847.02,845.93,0.79487663]